Cogmind - Beta 14 @@@ ROGUE MODE // 2024.12.10 @ 14:12:04 Player: celerysam Result: Destroyed by Y-45 Defender with Beam Rifle Performance ------------- Evolutions (1) 500 Regions Visited (3) 600 Robots Destroyed (23) 115 Value Destroyed (739) 739 Prototype IDs (0) 0 Alien Tech Used (0) 0 Bonus (0) 0 TOTAL SCORE: 1954 Bonus ------- None Cogmind --------- Core Integrity 0/400 Matter 243/300 Energy 40/100 System Corruption 9% Temperature Hot (206) Movement Core (450) Ox8 Location -9/Storage Parts ------- > --- POWER (1) -------- (None) > --- PROPULSION (3) --- (None) > --- UTILITY (3) ------ Large Storage Unit Sensor Array > --- WEAPON (2) ------- Particle Gun Spread Laser > --- INVENTORY (15) --- Ion Engine Improved Ion Engine Improved Aluminum Leg Compact Wheel Compact Wheel Armored Wheel Armored Wheel Medium Laser Spread Laser Spread Laser Light Assault Rifle Light Assault Rifle Datajack Mace Heavy Hammer Peak State ------------ > --- POWER ------------ Improved Ion Engine > --- PROPULSION ------- Light Treads Light Treads Light Treads > --- UTILITY ---------- Large Storage Unit Sensor Array Drone Bay > --- WEAPON ----------- Spread Laser Spread Laser > --- INVENTORY -------- Ion Engine Ion Engine Light Treads Improved Aluminum Leg Compact Wheel Compact Wheel Armored Wheel Armored Wheel Medium Laser Particle Gun Spread Laser Light Assault Rifle Light Assault Rifle Mace Heavy Hammer [Rating: 18] Favorites ----------- Power Ion Engine Engine Ion Engine Propulsion Light Treads Treads Light Treads Wheel Compact Wheel Utility Large Storage Unit Device Sensor Array Storage Large Storage Unit Protection Light Armor Plating Weapon Spread Laser Energy Gun Spread Laser Ballistic Gun Light Assault Rifle Impact Weapon Mace Build | -11 -10 -9 -9 ------- Run | Yrd Mat Mat Sto Slots Evolved 2 | . . 2 . Power . | . . . . Propulsion 1 | . . 1 . Utility 1 | . . 1 . Weapon . | . . . . Parts Attached 36 | 7 6 10 13 Power 5 | 1 . 1 3 Engine 5 | 1 . 1 3 Core . | . . . . Reactor . | . . . . Propulsion 10 | 2 2 3 3 Treads 6 | . . 3 3 Leg . | . . . . Wheel 4 | 2 2 . . Hover . | . . . . Flight . | . . . . Utility 8 | 1 2 3 2 Device 4 | . . 2 2 Storage 2 | 1 1 . . Processor . | . . . . Hackware . | . . . . Protection 2 | . 1 1 . Artifact . | . . . . Weapon 13 | 3 2 3 5 Energy Gun 8 | 1 2 2 3 Energy Cannon . | . . . . Ballistic Gun 2 | 2 . . . Ballistic Cannon . | . . . . Launcher . | . . . . Special Weapon . | . . . . Impact Weapon 3 | . . 1 2 Slashing Weapon . | . . . . Piercing Weapon . | . . . . Special Melee Weapon . | . . . . Unidentified Prototypes . | . . . . Parts Lost 15 | . 1 9 5 Power 3 | . . 2 1 Propulsion 7 | . 1 3 3 Utility 4 | . . 3 1 Weapon 1 | . . 1 . Highest Loss Streak 5 | . 1 5 4 To Critical Strikes . | . . . . Average Slot Usage (%) 88 | . 87 87 91 Engine 10 | . 14 8 9 Treads 20 | . . 24 31 Wheel 8 | . 26 2 . Device 11 | . . 14 16 Storage 11 | . 14 11 11 Protection 2 | . 4 5 . Energy Gun 15 | . 12 19 13 Ballistic Gun 3 | . 13 . . Impact Weapon 4 | . . 1 8 Peak Build Rating 18 | 6 7 13 18 Average Rating 10 | 3 6 10 14 On Entrance 5 | . 6 7 7 Naked Turns . | . . . . Heaviest Build 40 | 13 31 35 40 Greatest Support 60 | 32 32 60 60 Greatest Overweight (x) 3 | 3 2 3 1 Average Overweight (x) . | . . . . Largest Inventory Capacity 15 | 8 15 15 15 Average Capacity 13 | 7 10 15 15 Most Carried 15 | 6 12 15 15 Average Carried 11 | 3 8 11 14 Final Capacity 15 | 8 15 15 15 Final Carried 15 | 6 12 13 15 Class Distribution -------------------- 100% | Mutant Dominant Class ---------------- Mutant | -10/Materials Mutant | -9/Materials Mutant | -9/Storage Resources | -11 -10 -9 -9 ----------- Run | Yrd Mat Mat Sto Matter Collected 468 | 215 128 66 59 Remotely . | . . . . Salvage Created 661 | . 224 234 203 Parts 54 | . 16 21 17 Haulers Intercepted . | . . . . Recyclers Shooed 1 | . . . 1 Parts Field Recycled . | . . . . Retrieved Matter . | . . . . Parts Self-Destructed . | . . . . Prevented . | . . . . Kills | -11 -10 -9 -9 ------- Run | Yrd Mat Mat Sto Combat Hostiles Destroyed 23 | . 7 10 6 Guns 23 | . 7 10 6 Classes Destroyed 3 | . 2 1 . Swarmer 6 | . 3 3 . Grunt 12 | . 4 4 4 Sentry 5 | . . 3 2 Best Kill Streak 5 | . 5 4 2 Combat Bots Only 5 | . 5 4 2 Max Kills in Single Turn 1 | . 1 1 1 Gunslinging . | . . . . Exploded . | . . . . Melee . | . . . . Uniques/NPCs Destroyed . | . . . . Combat | -11 -10 -9 -9 -------- Run | Yrd Mat Mat Sto Hostile Shots Fired 205 | . 34 70 101 Missed 52 | . 7 18 27 Damage Taken 2535 | . 326 1294 915 Core 504 | . 95 253 156 Absorbed by Shields . | . . . . Core Remaining (%) 81 | 100 62 . . Volleys Fired 74 | . 23 27 24 Largest 2 | . 2 2 2 Hottest 130 | . 70 130 130 Shots Fired 128 | . 41 48 39 Gun 128 | . 41 48 39 Cannon . | . . . . Launcher . | . . . . Special . | . . . . Kinetic 23 | . 23 . . Thermal 98 | . 12 47 39 Explosive . | . . . . Electromagnetic 7 | . 6 1 . Robot Hit Streak 19 | . 7 19 11 Robot Miss Streak 7 | . 2 7 6 Penetration Max . | . . . . Secondary Targets 5 | . 3 2 . Max Gunslinging Chain 1 | . 1 1 . Shots Hit Robots 102 | . 29 39 34 Core Hits 91 | . 14 43 34 Critical Kills . | . . . . Critical Parts Destroyed . | . . . . Critical Strikes 1 | . 1 . . Burn 1 | . 1 . . Melee Attacks 34 | . . 7 27 Impact 34 | . . 7 27 Slashing . | . . . . Piercing . | . . . . Sneak Attacks 1 | . . . 1 Combat Hostiles . | . . . . Follow-up Attacks . | . . . . Damage Inflicted 1397 | . 325 548 524 Guns 1322 | . 318 548 456 Cannons . | . . . . Explosions . | . . . . Melee 64 | . . . 64 Ramming 11 | . 7 . 4 Kinetic 127 | . 127 . . Thermal 1128 | . 124 548 456 Explosive . | . . . . Electromagnetic 67 | . 67 . . Impact 64 | . . . 64 Slashing . | . . . . Piercing . | . . . . Highest Corruption 9 | . . 9 9 Average Corruption 8 | . . 8 9 Corruption Purged . | . . . . Corruption Blocked . | . . . . Effects 25 | . . 1 24 Message Errors 9 | . . . 9 Matter Fused 2 | . . . 2 Heat Flow Errors 3 | . . . 3 Energy Discharges 4 | . . . 4 Data Loss (minor) 5 | . . 1 4 Data Loss (major) 1 | . . . 1 Misfires 1 | . . . 1 Overload Shots . | . . . . Overflow Damage 24 | . . . 24 Projectiles . | . . . . Explosions . | . . . . Melee 24 | . . . 24 Knockbacks 1 | . . . 1 Impact 1 | . . . 1 Kinetic . | . . . . Secondary . | . . . . Self-Inflicted Damage 3 | . 3 . . Shots . | . . . . Rammed 2 | . 1 . 1 Targets Rammed 2 | . 1 . 1 Kicked . | . . . . Crushed . | . . . . Highest Temperature 331 | . 178 320 331 Average Temperature 105 | . 63 133 100 Received Heat Transfer 909 | . 153 321 435 Siege Activations . | . . . . Robots Corrupted . | . . . . Combat Hostiles . | . . . . Parts Fried . | . . . . Impact Corruptions 1 | . . . 1 Robots Melted . | . . . . Combat Hostiles . | . . . . Parts Melted 3 | . 2 1 . Heat Transferred 1845 | . 444 763 638 Parts Sabotaged . | . . . . Parts Stolen . | . . . . Parts Stripped . | . . . . Power Chain Reactions . | . . . . Alert | -11 -10 -9 -9 ------- Run | Yrd Mat Mat Sto Peak Influence 489 | . 180 489 205 Initial 185 | . . 76 185 Average 131 | . 87 229 113 Maximum Alert Level 2 | . . 2 1 Low Security (%) 84 | 100 100 46 95 Level 1 14 | . . 47 4 Level 2 1 | . . 5 . Level 3 . | . . . . Level 4 . | . . . . Level 5 . | . . . . High Security . | . . . . Max Security . | . . . . Squads Dispatched 6 | . . 4 2 Investigation 2 | . . 2 . Extermination . | . . . . Reinforcement 4 | . . 2 2 Assault . | . . . . Garrison . | . . . . Intercept . | . . . . Searches Triggered . | . . . . Construction Impeded . | . . . . Haulers Reinforced . | . . . . Active Scanning Responses . | . . . . Cargo Convoy Interrupts . | . . . . Stealth | -11 -10 -9 -9 --------- Run | Yrd Mat Mat Sto Distress Signals 5 | . . 3 2 Communications Jammed . | . . . . Distress Signals . | . . . . Times Spotted 47 | . 9 21 17 Peak Tracking Total 9 | . 3 9 4 Tactical Retreats 3 | . . 2 1 Traps | -11 -10 -9 -9 ------- Run | Yrd Mat Mat Sto Traps Triggered 3 | . 1 2 . Indirectly . | . . . . Trap Hack Attempts . | . . . . Triggered . | . . . . Disarmed . | . . . . Reprogrammed . | . . . . Reused . | . . . . Traps Extracted . | . . . . Installed . | . . . . Triggered . | . . . . Machines | -11 -10 -9 -9 ---------- Run | Yrd Mat Mat Sto Machines Disabled 2 | . . 1 1 Max in Single Turn 1 | . . 1 1 Machines Repaired . | . . . . Machines Dismantled . | . . . . Machines Sabotaged . | . . . . Overloaded Fab Kills . | . . . . Hacking | -11 -10 -9 -9 --------- Run | Yrd Mat Mat Sto Machines Accessed 6 | . 5 . 1 Terminals 6 | . 5 . 1 Fabricators . | . . . . Repair Stations . | . . . . Recycling Units . | . . . . Scanalyzers . | . . . . Garrison Access . | . . . . Total Hacks 9 | . 8 . 1 Successful 3 | . 3 . . Failed 6 | . 5 . 1 Catastrophic 1 | . . . 1 Database Lockouts . | . . . . Manual 8 | . 8 . . Terminals 9 | . 8 . 1 Fabricators . | . . . . Repair Stations . | . . . . Recycling Units . | . . . . Scanalyzers . | . . . . Garrison Access . | . . . . Terminal Hacks . | . . . . Fabricator Hacks . | . . . . Repair Station Hacks . | . . . . Recycling Unit Hacks . | . . . . Scanalyzer . | . . . . Garrison Access Hacks . | . . . . Unauthorized Hacks 3 | . 3 . . Terminals 3 | . 3 . . Botnet 3 | . 3 . . Fabricators . | . . . . Repair Stations . | . . . . Recycling Units . | . . . . Scanalyzers . | . . . . Garrison Access . | . . . . Data Cores Recovered . | . . . . Used . | . . . . Hacking Detections 4 | . 3 . 1 Full Trace Events 1 | . 1 . . Feedback Events . | . . . . Feedback Blocked . | . . . . Robot Schematics Acquired . | . . . . Robots Built . | . . . . Authchips . | . . . . Time . | . . . . Total Robot Build Rating . | . . . . Part Schematics Acquired . | . . . . Parts Built . | . . . . Authchips . | . . . . Time . | . . . . Total Part Build Rating . | . . . . Parts Repaired . | . . . . Time . | . . . . Parts Recycled . | . . . . Recycled Matter . | . . . . Retrieved Matter . | . . . . Retrieved Components . | . . . . Parts Scanalyzed . | . . . . Part Schematics Acquired . | . . . . Parts Damaged . | . . . . Bothacking | -11 -10 -9 -9 ------------ Run | Yrd Mat Mat Sto Used RIF Installer . | . . . . Robots Hacked . | . . . . Non-combat . | . . . . Combat . | . . . . Robot Hacks Applied . | . . . . Relay Couplers Released . | . . . . Fabnet Peak Effective % . | . . . . Robots Rewired . | . . . . Allies Hacked . | . . . . Hacks Repelled . | . . . . Allies | -11 -10 -9 -9 -------- Run | Yrd Mat Mat Sto Total Allies . | . . . . Largest Group . | . . . . Highest-Rated Group . | . . . . Highest-Rated Ally . | . . . . Total Orders . | . . . . Ally Attacks . | . . . . Total Damage . | . . . . Kills . | . . . . Allies Corrupted . | . . . . Allies Melted . | . . . . Intel | -11 -10 -9 -9 ------- Run | Yrd Mat Mat Sto Robot Analysis Total . | . . . . Derelict Logs Recovered . | . . . . Drone Launches 18 | . . . 18 Drone Recoveries 3 | . . . 3 Exploration | -11 -10 -9 -9 ------------- Run | Yrd Mat Mat Sto Turns Passed 1489 | 74 388 390 637 Spaces Moved 823 | 49 309 181 284 Core 17 | 17 . . . Treads 405 | . . 121 284 Legs . | . . . . Wheels 401 | 32 309 60 . Hover . | . . . . Flight . | . . . . Fastest Speed 50 | 50 90 110 160 Average Speed 132 | 113 99 150 160 Slowest Speed 240 | 200 110 240 240 Overloaded Moves . | . . . . Propulsion Burnouts . | . . . . Robots Hopped . | . . . . Cave-ins Triggered 2 | . . 2 . Exploration Rate (%) 36 | 5 56 26 59 Regions Visited 3 Branch Regions 1 Pre-discovered Areas . | . . . . Known Exits Taken . | . . . . Unknown Exits Taken 3 | 1 1 1 . Scrap Searched . | . . . . Spaces Dug 28 | . . 7 21 Terrain Destroyed 28 | . . 7 21 Melee 28 | . . 7 21 Projectile . | . . . . AOE . | . . . . Terrain Rammed . | . . . . Walls Destroyed . | . . . . Machines Disabled . | . . . . Actions | -11 -10 -9 -9 --------- Run | Yrd Mat Mat Sto Total 1036 | 67 351 238 380 Wait 17 | . 1 5 11 Move 820 | 48 308 180 284 Hop . | . . . . Pick Up 39 | 12 9 9 9 Fast Attach 1 | . 1 . . Attach 20 | 6 1 8 5 Detach . | . . . . Swap 15 | 1 4 2 8 Drop 7 | . 3 . 4 Fire 74 | . 23 27 24 Melee 34 | . . 7 27 Ram 1 | . 1 . . Kick . | . . . . Crush 1 | . . . 1 Escape Stasis . | . . . . Rewire . | . . . . Trap . | . . . . Miscellaneous 7 | . . . 7 Route ------- -11/Scrapyard -10/Materials -9/Materials -9/Storage History --------- Turn | Location | Event 18 | -11/Scrapyard | Discovered new exit (range 15) 75 | -11/Scrapyard | Entered Materials 315 | -10/Materials | Build established: Mutant 454 | -10/Materials | Discovered new exit (range 7) 463 | -10/Materials | Entered another Materials area 463 | -9/Materials | Evolved 2 slots: Propulsion x1, Utility x1 835 | -9/Materials | Crushed by falling debris 839 | -9/Materials | Crushed by falling debris 839 | -9/Materials | Core integrity fell below 50% 841 | -9/Materials | Discovered new exit (range 6) 853 | -9/Materials | Entered Storage 870 | -9/Storage | Lost 5 parts (1p2n2u) 1160 | -9/Storage | Lost 14 allies 1462 | -9/Storage | Core integrity fell below 20% 1490 | -9/Storage | Destroyed by Y-45 Defender with Beam Rifle Last Messages --------------- 01325_ N7PHJDEZ5E#N2YRV 01416_ System corrupted: Component data lost. 01433_ T3I,I9HO=FHR33W S#QEY7OTQK0WHV 01448_ Lgt. Treads destroyed. 01458_ Critical hit (Burn: +37). 01467_ Lgt. Treads destroyed. 01467_ G-34 Mercenary destroyed. 01475_ UQFGAIMCS4P:G:D:MR